Cogmind - Beta 17 @@@ ROGUE MODE // 2026.07.02 @ 19:01:40 Player: ginkogruen Result: Destroyed by G-34 Mercenary with Small Laser Performance ------------- Evolutions (0) 0 Regions Visited (1) 200 Robots Destroyed (16) 80 Value Destroyed (481) 481 Prototype IDs (0) 0 Alien Tech Used (0) 0 Bonus (0) 0 TOTAL SCORE: 761 Bonus ------- None Cogmind --------- Core Integrity 0/250 Matter 290/300 Energy 160/160 System Corruption 0% Temperature Warm (103) Movement Walking (120) Location -10/Materials Parts ------- > --- POWER (1) -------- Light Nuclear Core > --- PROPULSION (2) --- Aluminum Leg Aluminum Leg > --- UTILITY (2) ------ Small Storage Unit Signal Interpreter > --- WEAPON (2) ------- Small Laser Particle Gun > --- INVENTORY (8) ---- Ion Engine Light Treads Aluminum Leg Signal Interpreter Seismic Detector ECM Suite Small Laser Small Laser Peak State ------------ > --- POWER ------------ Light Nuclear Core > --- PROPULSION ------- Aluminum Leg Aluminum Leg > --- UTILITY ---------- Small Storage Unit Signal Interpreter > --- WEAPON ----------- Small Laser Particle Gun > --- INVENTORY -------- Ion Engine Light Treads Aluminum Leg Signal Interpreter Seismic Detector ECM Suite Small Laser Small Laser [Rating: 10] Favorites ----------- Power Light Ion Engine Engine Light Ion Engine Power Core Light Nuclear Core Propulsion Aluminum Leg Treads Light Treads Leg Aluminum Leg Utility Seismic Detector Device Seismic Detector Storage Small Storage Unit Processor Signal Interpreter Weapon Grenade Launcher Energy Gun Particle Gun Energy Cannon Beam Cannon Ballistic Gun Light Assault Rifle Launcher Grenade Launcher Build | -11 -10 ------- Run | Yrd Mat Slots Evolved . | . . Power . | . . Propulsion . | . . Utility . | . . Weapon . | . . Parts Attached 26 | 7 19 Power 5 | 1 4 Engine 4 | 1 3 Core 1 | . 1 Reactor . | . . Propulsion 7 | 2 5 Treads 1 | . 1 Leg 6 | 2 4 Wheel . | . . Hover . | . . Flight . | . . Utility 4 | 1 3 Device 2 | 1 1 Storage 1 | . 1 Processor 1 | . 1 Hackware . | . . Protection . | . . Artifact . | . . Weapon 10 | 3 7 Energy Gun 3 | 1 2 Energy Cannon 1 | . 1 Ballistic Gun 3 | 2 1 Ballistic Cannon . | . . Launcher 3 | . 3 Special Weapon . | . . Impact Weapon . | . . Slashing Weapon . | . . Piercing Weapon . | . . Special Melee Weapon . | . . Unidentified Prototypes . | . . Parts Lost 10 | . 10 Power 3 | . 3 Propulsion 3 | . 3 Utility . | . . Weapon 4 | . 4 Highest Loss Streak 8 | . 8 To Critical Strikes . | . . Average Backups 1 | . 1 Power . | . . Propulsion . | . . Utility . | . . Weapon . | . . Tool/Special . | . . Unused Backups 4 | . 4 Power 1 | . 1 Propulsion . | . . Utility 2 | . 2 Weapon 1 | . 1 Tool/Special . | . . Average Slot Usage (%) 93 | . 93 Engine 12 | . 12 Leg 25 | . 25 Device 14 | . 14 Storage 2 | . 2 Processor 9 | . 9 Energy Gun 4 | . 4 Energy Cannon 4 | . 4 Ballistic Gun 4 | . 4 Launcher 12 | . 12 Peak Build Rating 10 | 6 10 Average Rating 6 | 4 6 On Entrance 3 | . 6 Avg Prop Armor Cover (%) 10 | . 10 Naked Turns . | . . Heaviest Build 14 | 6 14 Greatest Support 20 | 20 20 Greatest Overweight (x) . | . . Average Overweight (x) . | . . Largest Inventory Capacity 8 | 5 8 Average Capacity 5 | 5 5 Most Carried 8 | . 8 Average Carried 1 | . 1 Final Capacity 8 | 5 8 Final Carried 8 | . 8 Class Distribution -------------------- 76% | Mutant 23% | Scavenger-Mutant Dominant Class ---------------- Mutant | -10/Materials Resources | -11 -10 ----------- Run | Yrd Mat Matter Collected 652 | 284 368 Remotely . | . . Salvage Created 376 | 39 337 Parts 26 | 1 25 Haulers Intercepted 1 | . 1 Recyclers Shooed 2 | . 2 Parts Field Recycled . | . . Retrieved Matter . | . . Parts Self-Destructed . | . . Prevented . | . . Parts Restored . | . . Kills | -11 -10 ------- Run | Yrd Mat Combat Hostiles Destroyed 14 | 1 13 Guns 5 | 1 4 AOE 9 | . 9 Classes Destroyed 4 | 1 3 Hauler 1 | . 1 Watcher 1 | . 1 Swarmer 3 | . 3 Grunt 11 | 1 10 Best Kill Streak 7 | 1 7 Combat Bots Only 5 | 1 5 Max Kills in Single Turn 3 | 1 3 Gunslinging . | . . Exploded 2 | . 2 Melee . | . . Uniques/NPCs Destroyed . | . . Combat | -11 -10 -------- Run | Yrd Mat Hostile Shots Fired 90 | 12 78 Missed 31 | 3 28 Hits 59 | 9 50 Projectile 59 | 9 50 Critical Strikes 2 | . 2 Damage Taken 919 | 98 821 Core 259 | 32 227 Absorbed by Shields . | . . Core Remaining (%) 87 | 87 . Volleys Fired 44 | 7 37 Largest 2 | 2 2 Hottest 105 | 40 105 Shots Fired 63 | 14 49 Gun 41 | 14 27 Cannon 2 | . 2 Launcher 20 | . 20 Special . | . . Kinetic 32 | 14 18 Thermal 11 | . 11 Explosive 20 | . 20 Electromagnetic . | . . Robot Hit Streak 3 | 2 3 Robot Miss Streak 4 | 4 4 Penetration Max . | . . Secondary Targets . | . . Shots Hit Robots 29 | 4 25 Core Hits 36 | 3 33 Critical Kills . | . . Critical Parts Destroyed . | . . Critical Strikes . | . . Melee Attacks . | . . Impact . | . . Slashing . | . . Piercing . | . . Sneak Attacks . | . . Combat Hostiles . | . . Follow-up Attacks . | . . Damage Inflicted 1076 | 52 1024 Guns 215 | 52 163 Cannons . | . . Explosions 861 | . 861 Melee . | . . Ramming . | . . Kinetic 148 | 52 96 Thermal 67 | . 67 Explosive 861 | . 861 Electromagnetic . | . . Impact . | . . Slashing . | . . Piercing . | . . Highest Corruption . | . . Average Corruption . | . . Corruption Purged . | . . Corruption Blocked . | . . Overload Shots . | . . Overflow Damage 27 | . 27 Projectiles . | . . Explosions 27 | . 27 Melee . | . . Knockbacks . | . . Impact . | . . Kinetic . | . . Secondary . | . . Self-Inflicted Damage 196 | . 196 Shots 8 | . 8 Rammed . | . . Targets Rammed . | . . Kicked . | . . Crushed . | . . Highest Temperature 91 | 6 91 Average Temperature 21 | 6 23 Received Heat Transfer 426 | 54 372 Siege Activations . | . . Martial Activations . | . . Shielding Activations . | . . Robots Disrupted . | . . Combat Hostiles . | . . Robots Corrupted . | . . Combat Hostiles . | . . Parts Fried . | . . Impact Corruptions . | . . Robots Melted . | . . Combat Hostiles . | . . Parts Melted . | . . Heat Transferred 161 | . 161 Parts Sabotaged . | . . Parts Stolen . | . . Parts Stripped . | . . Power Chain Reactions . | . . Alert | -11 -10 ------- Run | Yrd Mat Maximum Alert Level . | . . Low Security (%) 100 | 100 100 Level 1 . | . . Level 2 . | . . Level 3 . | . . Level 4 . | . . Level 5 . | . . High Security . | . . Max Security . | . . Peak Influence 187 | 20 187 Initial 6 | . 6 Average 65 | 2 75 Influence Increases 473 | 20 453 Destroy 0b10 Robot/C 280 | 20 260 Destroy 0b10 Robot/NC 10 | . 10 Destroy Leader 54 | . 54 Disable Machine 30 | . 30 Destroy Structure 84 | . 84 Lose Combat Pursuer 15 | . 15 Influence Decreases 332 | 10 322 Entered New Map 4 | . 4 Time Decay 228 | 10 218 Lost Part 100 | . 100 Squads Dispatched 2 | . 2 Investigation . | . . Extermination . | . . Reinforcement 2 | . 2 Assault . | . . Garrison . | . . Intercept . | . . Searches Triggered . | . . Construction Impeded . | . . Haulers Reinforced . | . . Active Scanning Responses . | . . Cargo Convoy Interrupts . | . . Stealth | -11 -10 --------- Run | Yrd Mat Distress Signals 4 | . 4 Communications Jammed . | . . Distress Signals . | . . Times Spotted 24 | 1 23 Peak Tracking Total 6 | 1 6 Tactical Retreats 1 | . 1 Traps | -11 -10 ------- Run | Yrd Mat Traps Triggered . | . . Indirectly . | . . Trap Hack Attempts . | . . Triggered . | . . Disarmed . | . . Reprogrammed . | . . Reused . | . . Traps Extracted . | . . Installed . | . . Triggered . | . . Machines | -11 -10 ---------- Run | Yrd Mat Machines Disabled 2 | . 2 Max in Single Turn 1 | . 1 Machines Repaired . | . . Machines Dismantled . | . . Machines Sabotaged . | . . Overloaded Fab Kills . | . . Hacking | -11 -10 --------- Run | Yrd Mat Machines Accessed 1 | . 1 Terminals 1 | . 1 Fabricators . | . . Repair Stations . | . . Recycling Units . | . . Scanalyzers . | . . Garrison Access . | . . Total Hacks 1 | . 1 Successful 1 | . 1 Failed . | . . Catastrophic . | . . Database Lockouts . | . . Manual . | . . Terminals 1 | . 1 Fabricators . | . . Repair Stations . | . . Recycling Units . | . . Scanalyzers . | . . Garrison Access . | . . Terminal Hacks 1 | . 1 Alert Level 1 | . 1 Fabricator Hacks . | . . Repair Station Hacks . | . . Recycling Unit Hacks . | . . Scanalyzer . | . . Garrison Access Hacks . | . . Unauthorized Hacks . | . . Terminals . | . . Fabricators . | . . Repair Stations . | . . Recycling Units . | . . Scanalyzers . | . . Garrison Access . | . . Data Cores Recovered . | . . Used . | . . Hacking Detections . | . . Full Trace Events . | . . Feedback Events . | . . Feedback Blocked . | . . Robot Schematics Acquired . | . . Robots Built . | . . Authchips . | . . Time . | . . Total Robot Build Rating . | . . Part Schematics Acquired . | . . Parts Built . | . . Authchips . | . . Time . | . . Total Part Build Rating . | . . Part Studies Acquired . | . . Parts Repaired . | . . Time . | . . Parts Recycled . | . . Recycled Matter . | . . Retrieved Matter . | . . Retrieved Components . | . . Parts Scanalyzed . | . . Part Schematics Acquired . | . . Parts Damaged . | . . Bothacking | -11 -10 ------------ Run | Yrd Mat Used RIF Installer . | . . Robots Hacked . | . . Non-combat . | . . Combat . | . . Robot Hacks Applied . | . . Relay Couplers Released . | . . Fabnet Peak Effective % . | . . Robots Rewired . | . . Allies Hacked . | . . Hacks Repelled . | . . Allies | -11 -10 -------- Run | Yrd Mat Total Allies . | . . Largest Group . | . . Highest-Rated Group . | . . Highest-Rated Ally . | . . Total Orders . | . . Ally Attacks . | . . Total Damage . | . . Kills . | . . Allies Corrupted . | . . Allies Melted . | . . Intel | -11 -10 ------- Run | Yrd Mat Active Infowar (turns) 524 | . 524 Seismic 524 | . 524 Robot Analysis Total . | . . Derelict Logs Recovered . | . . Drone Launches . | . . Drone Recoveries . | . . Exploration | -11 -10 ------------- Run | Yrd Mat Turns Passed 794 | 112 682 Spaces Moved 548 | 80 468 Core 20 | 17 3 Treads 9 | . 9 Legs 519 | 63 456 Wheels . | . . Hover . | . . Flight . | . . Fastest Speed 50 | 50 50 Average Speed 118 | 105 120 Slowest Speed 160 | 120 160 Overloaded Moves . | . . Propulsion Burnouts . | . . Robots Hopped . | . . Potential Cave-ins . | . . Cave-ins Triggered . | . . Exploration Rate (%) 33 | 9 58 Regions Visited 1 Branch Regions . Pre-discovered Areas . | . . Known Exits Taken . | . . Unknown Exits Taken 1 | 1 . Scrap Searched . | . . Spaces Dug . | . . Terrain Destroyed 110 | . 110 Melee . | . . Projectile . | . . AOE 110 | . 110 Terrain Rammed . | . . Walls Destroyed . | . . Machines Disabled . | . . Actions | -11 -10 --------- Run | Yrd Mat Total 627 | 93 534 Wait . | . . Move 547 | 79 468 Hop . | . . Pick Up 7 | . 7 Fast Attach 15 | 6 9 Attach 2 | . 2 Detach . | . . Swap 11 | 1 10 Drop 1 | . 1 Fire 44 | 7 37 Melee . | . . Ram . | . . Kick . | . . Crush . | . . Escape Stasis . | . . Rewire . | . . Trap . | . . Miscellaneous . | . . Route ------- -11/Scrapyard -10/Materials (discovered 2 exits: *Min x2) History --------- Turn | Location | Event 2 | -11/Scrapyard | Met Revision 17 66 | -11/Scrapyard | Discovered new exit (range 8) 113 | -11/Scrapyard | Entered Materials 303 | -10/Materials | Build established: Mutant 362 | -10/Materials | Discovered new exit (range 5) 368 | -10/Materials | Identified exit to Mines 565 | -10/Materials | Core integrity fell below 50% 602 | -10/Materials | Core integrity fell below 20% 629 | -10/Materials | Lost 8 parts (3p3n2w) 711 | -10/Materials | Discovered exit to Mines (range 9) 713 | -10/Materials | Derelicts attacked the area 795 | -10/Materials | Destroyed by G-34 Mercenary with Small Laser Last Messages --------------- 00678_ U-05 Engineer lays Concrete. 00680_ K-01 Serf collects debris. 00695_ Acquired Ion Engine. 00711_ EXIT=FOUND: MINES 00713_ ALERT: Derelict incursion detected, dispatching patrols to target area. 00720_ Acquired Signal Interpreter. 00723_ Acquired ECM Suite. 00729_ Acquired Sml. Laser. 00756_ O-16 Technician sends out distress signal. 00756_ O-16 Technician: "IFF HANDSHAKE FAILED. SECURING TERMINAL." 00759_ Lgt. Assault Rifle destroyed. 00762_ G-47 Trooper destroyed. 00765_ ALERT: Hostiles spotted, dispatching reinforcements to Terminal M008. 00774_ G-34 Mercenary destroyed. 00779_ Acquired Sml. Laser. 00785_ Acquired 40 matter. 00788_ Dropped Ion Engine. 00789_ R-06 Scavenger collects Ion Engine. Map ----- +----------------------------------------------------+ | | | | | | | | | | | | | | | | | | | | | | | ?????????????????????????????????????????????????? | | ?????????????????????????????????????????????????? | | ?????????????????????????????????????????????????? | | ????????????????????????#######??????????????????? | | ???????????????????????? #??????????????????? | | ???????????????????????? ???????????????????? | | ???????????????????????? ???????????????????? | | ?????????????????????? "" ????????????????????? | | ????????#####????????? "" ????????????????????? | | ???????##"""##?? ??????"T ?????????????????????? | | ??????##"|||"##? ??????"" ?????????????????????? | | ??????#"" ""#? #??????" g??????????????????????? | | ??????# #? #?????? ??????????????????????? | | ??????# > #? #??????#g#??????????????????????? | | ??????# #? #??????#@#??????????????????????? | | ??????# ## #??????# #??????????????????????? | | ???????# #?# #??????#%#???#??????????????????? | | ?######## #??# #??????# #?? #??????????????????? | | ?# # #### #?????## ### ###????????????????? | | ?#""" + #?????# %! #????????????????? | | ?#"Y # #?????# +????????????????? | | ?#""" # #??? + #????????????????? | | ?# ###### # # ##+###????????????????? | | ?# #????# ####### #????????????????????#? | | ?########????# ^ #?????##############? # | | ?????????????# #?????# #? | | ?????????????# #?????# """ """ ## | | ????????######+#### ######?????# """ """ ## | | ????????# # # #????????# """ """ # | | ????????# " # # #????????# # | | ????????# T + ###????????##########+### | | ????????# " # ##????????????????# ### | | ????????# """ ### ##????????????????# | | ????????# """ # # ###???????????????# | | ????????# """ # # # #???????????????# | | ????????# # # # #???????????????# ###+ | | ????????########+## +# #####???????????## ## | | ???????????????# ## #????????????# ## "" | | ???????????????# ## T #????????????# ## "" | +----------------------------------------------------+ Best States ------------- Heat Dissipation 35 Energy Generation 14 Energy Capacity 250 Matter Stores 300 Matter Capacity 300 Sight Range 16 Terrain Scan Density 10 Evasion (%) 55 Recoil Reduction 1 Item Schematics ----------------- None Robot Schematics ------------------ None Fabricated ------------ Nothing Repaired ---------- Nothing Studied --------- None Alien Tech Used ----------------- None Achievements -------------- None Challenges ------------ None Game ------ Seed MiniCoolingHoverbase Manual? 0 Play Time 00:12:11 Cumulative 21.8 hours Start 2026.07.02 @ 18:40:28 End 2026.07.02 @ 19:01:40 Sessions 1 Manual Loads 0 Difficulty Rogue Special Mode None Game No. 29 Rogue 11 Adventurer 18 Explorer 0 Win Type - Total 0 Types 0/0/0/0/0/0/0/0/0/0 Lore% 16 Gallery% 13 Achievement% 13 Wizard Run 0 Options --------- Layout 0 ASCII 0 Keyboard 1 Movement Vi Keybinds 0 Fullscreen 1 Font 24/Terminus Map View 76x50 Zoom Use 0% Tactical HUD 1 Map Filters NONE Filters NONE Steam 1 RUN: 214b9e8b-8efd-48a4-86bb-56d4679068eb